[Event "*** Titled Tuesday Blitz"]
[Site "Chess.com"]
[Date "2020.05.05"]
[Round "7"]
[White "Bodnar_Mykola"]
[Black "DanielMieles1985"]
[Result "1-0"]
[WhiteElo "2450"]
[BlackElo "2628"]
[TimeControl "180+1"]
[EndTime "11:18:55 PDT"]
[Termination "Bodnar_Mykola won by resignation"]

1. d4 {[%clk 0:03:00.9]} 1... Nf6 {[%clk 0:02:59.2]} 2. c4 {[%clk 0:03:00.9]}
2... e6 {[%clk 0:02:58.9]} 3. Nf3 {[%clk 0:03:00]} 3... d5 {[%clk 0:02:58.4]} 4.
Bg5 {[%clk 0:02:58.7]} 4... c6 {[%clk 0:02:57.1]} 5. e3 {[%clk 0:02:58.1]} 5...
Nbd7 {[%clk 0:02:55.3]} 6. Nc3 {[%clk 0:02:57.9]} 6... Qa5 {[%clk 0:02:53.2]} 7.
Nd2 {[%clk 0:02:57.8]} 7... Bb4 {[%clk 0:02:46.8]} 8. Qc2 {[%clk 0:02:55.4]}
8... O-O {[%clk 0:02:39]} 9. Be2 {[%clk 0:02:54.8]} 9... dxc4 {[%clk 0:02:35.8]}
10. Bxf6 {[%clk 0:02:52.5]} 10... Nxf6 {[%clk 0:02:36.2]} 11. Nxc4 {[%clk
0:02:53]} 11... Bxc3+ {[%clk 0:02:33.9]} 12. Qxc3 {[%clk 0:02:44.5]} 12... Qxc3+
{[%clk 0:02:33]} 13. bxc3 {[%clk 0:02:45.4]} 13... b6 {[%clk 0:02:30.6]} 14. Bf3
{[%clk 0:02:40.7]} 14... Nd5 {[%clk 0:02:21.7]} 15. Kd2 {[%clk 0:02:39.4]} 15...
Ba6 {[%clk 0:02:19.1]} 16. Ne5 {[%clk 0:02:36.6]} 16... Rac8 {[%clk 0:02:12.8]}
17. c4 {[%clk 0:02:32.5]} 17... Ne7 {[%clk 0:02:11.8]} 18. Rhc1 {[%clk
0:02:30.6]} 18... Rfd8 {[%clk 0:02:11.1]} 19. Ke1 {[%clk 0:02:26.3]} 19... f6
{[%clk 0:02:08.1]} 20. Nd3 {[%clk 0:02:23.2]} 20... c5 {[%clk 0:02:07.8]} 21.
Nf4 {[%clk 0:02:13.1]} 21... Kf7 {[%clk 0:01:56.3]} 22. d5 {[%clk 0:02:11.7]}
22... exd5 {[%clk 0:01:41.4]} 23. Nxd5 {[%clk 0:02:10]} 23... Nxd5 {[%clk
0:01:41.5]} 24. Bxd5+ {[%clk 0:02:09]} 24... Ke7 {[%clk 0:01:42]} 25. a4 {[%clk
0:02:02.3]} 25... Rc7 {[%clk 0:01:39.9]} 26. e4 {[%clk 0:01:57.7]} 26... Bb7
{[%clk 0:01:34.3]} 27. Ke2 {[%clk 0:01:39.7]} 27... Bxd5 {[%clk 0:01:33.3]} 28.
exd5 {[%clk 0:01:39.8]} 28... Kd6 {[%clk 0:01:33.7]} 29. Kd3 {[%clk 0:01:38.9]}
29... Re8 {[%clk 0:01:34]} 30. Re1 {[%clk 0:01:38.9]} 30... Rce7 {[%clk
0:01:34.9]} 31. Rxe7 {[%clk 0:01:38.5]} 31... Rxe7 {[%clk 0:01:35.8]} 32. h4
{[%clk 0:01:29.8]} 32... h5 {[%clk 0:01:35.2]} 33. Rb1 {[%clk 0:01:26.6]} 33...
f5 {[%clk 0:01:30.9]} 34. a5 {[%clk 0:01:22.3]} 34... bxa5 {[%clk 0:01:14.3]}
35. Rb5 {[%clk 0:01:19.4]} 35... Re4 {[%clk 0:01:14.4]} 36. g3 {[%clk
0:01:12.5]} 36... Rd4+ {[%clk 0:01:11.9]} 37. Kc3 {[%clk 0:01:12]} 37... f4
{[%clk 0:01:12.8]} 38. Rxa5 {[%clk 0:01:10.9]} 38... fxg3 {[%clk 0:01:12.9]} 39.
fxg3 {[%clk 0:01:10.4]} 39... Rg4 {[%clk 0:01:13.2]} 40. Rxa7 {[%clk 0:01:02.7]}
40... Rxg3+ {[%clk 0:01:12.9]} 41. Kb2 {[%clk 0:01:01.6]} 41... Rg4 {[%clk
0:01:12]} 42. Kb3 {[%clk 0:01:00.6]} 42... Rg3+ {[%clk 0:01:07.7]} 43. Ka4
{[%clk 0:00:59.7]} 43... g5 {[%clk 0:01:05.4]} 44. hxg5 {[%clk 0:00:57.8]} 44...
h4 {[%clk 0:01:05.7]} 45. Rh7 {[%clk 0:00:56.6]} 45... h3 {[%clk 0:01:05.9]} 46.
g6 {[%clk 0:00:55.3]} 46... Ke5 {[%clk 0:00:58.1]} 47. Kb5 {[%clk 0:00:53.9]}
47... Kd6 {[%clk 0:00:50.1]} 48. g7 {[%clk 0:00:50.8]} 48... Rb3+ {[%clk
0:00:43.2]} 49. Ka6 {[%clk 0:00:50.4]} 49... Rg3 {[%clk 0:00:42.9]} 50. Rh6+
{[%clk 0:00:40.8]} 50... Ke5 {[%clk 0:00:41.7]} 51. Kb5 {[%clk 0:00:41.3]} 1-0

[Event "*** Titled Tuesday Blitz"]
[Site "Chess.com"]
[Date "2020.05.05"]
[Round "7"]
[White "giantslayer83"]
[Black "Azeryahu"]
[Result "0-1"]
[WhiteElo "2710"]
[BlackElo "2899"]
[TimeControl "180+1"]
[EndTime "11:18:57 PDT"]
[Termination "Azeryahu won by checkmate"]

1. d4 {[%clk 0:03:00.9]} 1... d6 {[%clk 0:03:00.2]} 2. Nf3 {[%clk 0:02:58.2]}
2... Nf6 {[%clk 0:03:00.6]} 3. c4 {[%clk 0:02:57.3]} 3... Bf5 {[%clk 0:03:01.1]}
4. Nc3 {[%clk 0:02:57.2]} 4... h6 {[%clk 0:03:01]} 5. g3 {[%clk 0:02:55.1]} 5...
Nbd7 {[%clk 0:02:59]} 6. Bg2 {[%clk 0:02:55.1]} 6... Bh7 {[%clk 0:02:58.6]} 7.
O-O {[%clk 0:02:54.6]} 7... c6 {[%clk 0:02:59.3]} 8. d5 {[%clk 0:02:50.4]} 8...
e5 {[%clk 0:02:51.4]} 9. dxe6 {[%clk 0:02:35.6]} 9... fxe6 {[%clk 0:02:52.3]}
10. Nd4 {[%clk 0:02:32.5]} 10... Bg8 {[%clk 0:02:34.6]} 11. Bh3 {[%clk
0:02:25.2]} 11... Qe7 {[%clk 0:02:27.9]} 12. e4 {[%clk 0:02:20.8]} 12... g6
{[%clk 0:02:24.5]} 13. f4 {[%clk 0:02:08.9]} 13... e5 {[%clk 0:02:24.3]} 14.
fxe5 {[%clk 0:01:56.1]} 14... dxe5 {[%clk 0:02:25.2]} 15. Nb3 {[%clk 0:01:31.1]}
15... Bxc4 {[%clk 0:02:24.6]} 16. Kh1 {[%clk 0:01:31.2]} 16... Bg7 {[%clk
0:02:14.4]} 17. Na5 {[%clk 0:01:29.9]} 17... Bxf1 {[%clk 0:02:13.6]} 18. Qxf1
{[%clk 0:01:27.8]} 18... Nc5 {[%clk 0:02:12]} 19. Be3 {[%clk 0:01:24.8]} 19...
Ncxe4 {[%clk 0:01:39]} 20. Nxe4 {[%clk 0:01:11.4]} 20... Nxe4 {[%clk 0:01:37.4]}
21. Qc4 {[%clk 0:01:11.9]} 21... Ng5 {[%clk 0:01:23.1]} 22. Bg2 {[%clk
0:00:48.2]} 22... e4 {[%clk 0:00:24.7]} 23. Bxg5 {[%clk 0:00:14]} 23... hxg5
{[%clk 0:00:25.6]} 24. Bxe4 {[%clk 0:00:14.2]} 24... Be5 {[%clk 0:00:07.4]} 25.
Nxc6 {[%clk 0:00:13.2]} 25... bxc6 {[%clk 0:00:06.2]} 26. Bxc6+ {[%clk 0:00:13]}
26... Kf8 {[%clk 0:00:04]} 27. Bxa8 {[%clk 0:00:11.8]} 27... Kg7 {[%clk
0:00:04.6]} 28. Bg2 {[%clk 0:00:10.9]} 28... Bxg3 {[%clk 0:00:02.7]} 29. h3
{[%clk 0:00:10.4]} 29... Be5 {[%clk 0:00:03.3]} 30. Rf1 {[%clk 0:00:09.6]} 30...
Rf8 {[%clk 0:00:02.6]} 31. Rd1 {[%clk 0:00:08.9]} 31... Qf6 {[%clk 0:00:02.1]}
32. b3 {[%clk 0:00:08.6]} 32... Rf7 {[%clk 0:00:02.3]} 33. a4 {[%clk 0:00:08]}
33... Qf4 {[%clk 0:00:02.4]} 34. a5 {[%clk 0:00:07.5]} 34... Qh2# {[%clk
0:00:02.2]} 0-1

[Event "*** Titled Tuesday Blitz"]
[Site "Chess.com"]
[Date "2020.05.05"]
[Round "7"]
[White "kuba2006"]
[Black "ArnaudovP"]
[Result "0-1"]
[WhiteElo "2431"]
[BlackElo "2600"]
[TimeControl "180+1"]
[EndTime "11:18:57 PDT"]
[Termination "ArnaudovP won on time"]

1. e4 {[%clk 0:03:00.9]} 1... c6 {[%clk 0:02:59.6]} 2. d4 {[%clk 0:02:59.7]}
2... d5 {[%clk 0:02:59.5]} 3. e5 {[%clk 0:02:59.1]} 3... Bf5 {[%clk 0:02:58.6]}
4. Nf3 {[%clk 0:02:59.3]} 4... e6 {[%clk 0:02:58]} 5. a3 {[%clk 0:02:59.8]} 5...
Ne7 {[%clk 0:02:54.9]} 6. Be2 {[%clk 0:02:58.3]} 6... Nd7 {[%clk 0:02:53.5]} 7.
O-O {[%clk 0:02:57.6]} 7... Ng6 {[%clk 0:02:53.5]} 8. c4 {[%clk 0:02:50.1]} 8...
Be7 {[%clk 0:02:46.1]} 9. Nc3 {[%clk 0:02:49.4]} 9... O-O {[%clk 0:02:45.7]} 10.
h3 {[%clk 0:02:48.6]} 10... f6 {[%clk 0:02:44.9]} 11. exf6 {[%clk 0:02:35.1]}
11... Bxf6 {[%clk 0:02:44.7]} 12. Be3 {[%clk 0:02:33.4]} 12... Nh4 {[%clk
0:02:35.7]} 13. cxd5 {[%clk 0:02:23.4]} 13... Nxf3+ {[%clk 0:02:31.5]} 14. Bxf3
{[%clk 0:02:24.3]} 14... exd5 {[%clk 0:02:31.9]} 15. Bg4 {[%clk 0:02:22.1]}
15... Bxg4 {[%clk 0:02:29.8]} 16. Qxg4 {[%clk 0:02:23]} 16... Nb6 {[%clk
0:02:29.4]} 17. Rae1 {[%clk 0:02:14.4]} 17... Qc8 {[%clk 0:02:29]} 18. Qg3
{[%clk 0:01:51.2]} 18... Qf5 {[%clk 0:02:26.5]} 19. Ne2 {[%clk 0:01:40.9]} 19...
Nc4 {[%clk 0:02:25.2]} 20. Bc1 {[%clk 0:01:38.7]} 20... Rad8 {[%clk 0:02:22.1]}
21. Qg4 {[%clk 0:01:32]} 21... Qxg4 {[%clk 0:02:16.9]} 22. hxg4 {[%clk
0:01:32.9]} 22... g6 {[%clk 0:02:16.8]} 23. b3 {[%clk 0:01:26.9]} 23... Nd6
{[%clk 0:02:16]} 24. f3 {[%clk 0:01:26.9]} 24... Rfe8 {[%clk 0:02:13.1]} 25. Bb2
{[%clk 0:01:24.1]} 25... Re7 {[%clk 0:02:04.6]} 26. Nc1 {[%clk 0:01:15]} 26...
Rde8 {[%clk 0:02:02]} 27. Rxe7 {[%clk 0:01:10]} 27... Rxe7 {[%clk 0:02:02.1]}
28. Kf2 {[%clk 0:01:07.6]} 28... Nb5 {[%clk 0:01:56.1]} 29. Ne2 {[%clk
0:00:56.1]} 29... Re8 {[%clk 0:01:50.1]} 30. a4 {[%clk 0:00:55.7]} 30... Nc7
{[%clk 0:01:50.2]} 31. g3 {[%clk 0:00:49.8]} 31... Na6 {[%clk 0:01:42.2]} 32.
Nf4 {[%clk 0:00:40.1]} 32... Nb4 {[%clk 0:01:40.9]} 33. Bc3 {[%clk 0:00:38.2]}
33... Nc2 {[%clk 0:01:37.9]} 34. Rd1 {[%clk 0:00:32.1]} 34... Kf7 {[%clk
0:01:34.5]} 35. Rd2 {[%clk 0:00:30.2]} 35... Ne3 {[%clk 0:01:34]} 36. Nd3 {[%clk
0:00:27.2]} 36... b6 {[%clk 0:01:28.6]} 37. a5 {[%clk 0:00:18.6]} 37... c5
{[%clk 0:01:27.3]} 38. axb6 {[%clk 0:00:18.4]} 38... axb6 {[%clk 0:01:25]} 39.
Nf4 {[%clk 0:00:18.2]} 39... c4 {[%clk 0:01:20]} 40. bxc4 {[%clk 0:00:15.1]}
40... dxc4 {[%clk 0:01:19.4]} 41. Ra2 {[%clk 0:00:09.8]} 41... Nd1+ {[%clk
0:01:18.1]} 42. Kg2 {[%clk 0:00:10.1]} 42... Nxc3 {[%clk 0:01:18.2]} 43. Ra7+
{[%clk 0:00:10.7]} 43... Re7 {[%clk 0:01:17.8]} 44. Ra3 {[%clk 0:00:11.3]} 44...
Ne2 {[%clk 0:01:16.3]} 45. Nd5 {[%clk 0:00:10.8]} 45... Rb7 {[%clk 0:01:13.7]}
46. Ra4 {[%clk 0:00:05.4]} 46... c3 {[%clk 0:01:13.3]} 47. Rc4 {[%clk
0:00:03.9]} 47... b5 {[%clk 0:01:13.8]} 48. Rc6 {[%clk 0:00:03.8]} 48... Bxd4
{[%clk 0:01:13.8]} 49. Nb4 {[%clk 0:00:02]} 49... Bf6 {[%clk 0:01:09.8]} 50. f4
{[%clk 0:00:01.7]} 50... Rd7 {[%clk 0:01:01.2]} 51. g5 {[%clk 0:00:01.4]} 51...
Bg7 {[%clk 0:01:01.6]} 0-1

[Event "*** Titled Tuesday Blitz"]
[Site "Chess.com"]
[Date "2020.05.05"]
[Round "7"]
[White "GasconJR"]
[Black "K_A_S_T_O_R"]
[Result "0-1"]
[WhiteElo "2615"]
[BlackElo "2788"]
[TimeControl "180+1"]
[EndTime "11:19:00 PDT"]
[Termination "K_A_S_T_O_R won by resignation"]

1. d4 {[%clk 0:02:44.3]} 1... Nf6 {[%clk 0:02:59.3]} 2. c4 {[%clk 0:02:42.9]}
2... e6 {[%clk 0:02:59.7]} 3. Nf3 {[%clk 0:02:39.3]} 3... c5 {[%clk 0:02:59.3]}
4. Nc3 {[%clk 0:02:34.4]} 4... a6 {[%clk 0:02:53.9]} 5. d5 {[%clk 0:02:33.3]}
5... exd5 {[%clk 0:02:53.2]} 6. cxd5 {[%clk 0:02:32.2]} 6... d6 {[%clk
0:02:53.5]} 7. a4 {[%clk 0:02:31.4]} 7... g6 {[%clk 0:02:52]} 8. Bf4 {[%clk
0:02:31.4]} 8... Qe7 {[%clk 0:02:44.4]} 9. h3 {[%clk 0:02:16.5]} 9... Nbd7
{[%clk 0:02:41.4]} 10. e3 {[%clk 0:02:08.7]} 10... Bg7 {[%clk 0:02:38.5]} 11.
Be2 {[%clk 0:02:07.9]} 11... O-O {[%clk 0:02:36.6]} 12. O-O {[%clk 0:02:08]}
12... Ne8 {[%clk 0:02:32.4]} 13. Bh2 {[%clk 0:01:56.1]} 13... f5 {[%clk
0:02:29.9]} 14. Qc2 {[%clk 0:01:51.3]} 14... b6 {[%clk 0:02:19]} 15. Rae1 {[%clk
0:01:34.4]} 15... Kh8 {[%clk 0:02:14.2]} 16. Nd2 {[%clk 0:01:25.5]} 16... Rb8
{[%clk 0:02:02.2]} 17. Nc4 {[%clk 0:01:05.2]} 17... Ne5 {[%clk 0:01:58.3]} 18.
Nxe5 {[%clk 0:01:03.2]} 18... dxe5 {[%clk 0:01:55.2]} 19. Rd1 {[%clk 0:00:46.9]}
19... Nd6 {[%clk 0:01:54.1]} 20. Nb1 {[%clk 0:00:46]} 20... f4 {[%clk
0:01:36.7]} 21. exf4 {[%clk 0:00:45.4]} 21... exf4 {[%clk 0:01:35.5]} 22. Rfe1
{[%clk 0:00:43.4]} 22... Qf6 {[%clk 0:01:33.6]} 23. b3 {[%clk 0:00:32.5]} 23...
Bf5 {[%clk 0:01:27.5]} 24. Bd3 {[%clk 0:00:32]} 24... g5 {[%clk 0:01:18.8]} 25.
Na3 {[%clk 0:00:23.3]} 25... Qc3 {[%clk 0:01:11.2]} 26. Qxc3 {[%clk 0:00:21.7]}
26... Bxc3 {[%clk 0:01:10.2]} 27. Re2 {[%clk 0:00:20.1]} 27... b5 {[%clk
0:01:07.1]} 28. Bxf5 {[%clk 0:00:18.2]} 28... Nxf5 {[%clk 0:01:01.9]} 29. Nc2
{[%clk 0:00:16]} 29... Nd4 {[%clk 0:01:00.1]} 30. Nxd4 {[%clk 0:00:15.7]} 30...
cxd4 {[%clk 0:01:00.7]} 31. Re5 {[%clk 0:00:09.7]} 31... h6 {[%clk 0:00:59.3]}
32. Kf1 {[%clk 0:00:09.2]} 32... bxa4 {[%clk 0:00:57.5]} 33. bxa4 {[%clk
0:00:09.3]} 33... Rfe8 {[%clk 0:00:52.5]} 34. Rxe8+ {[%clk 0:00:08.9]} 34...
Rxe8 {[%clk 0:00:53]} 35. f3 {[%clk 0:00:09.4]} 35... Rd8 {[%clk 0:00:51.1]} 36.
Bg1 {[%clk 0:00:09.2]} 36... Rxd5 {[%clk 0:00:50.9]} 37. Ke2 {[%clk 0:00:09.4]}
37... Kg8 {[%clk 0:00:47.7]} 38. Kd3 {[%clk 0:00:09.5]} 38... Ra5 {[%clk
0:00:48.3]} 39. Bxd4 {[%clk 0:00:05.7]} 39... Bxd4 {[%clk 0:00:48.3]} 40. Kxd4
{[%clk 0:00:06.4]} 40... Rxa4+ {[%clk 0:00:48.9]} 41. Ke5 {[%clk 0:00:06.9]}
41... Kf7 {[%clk 0:00:41.6]} 42. Rd7+ {[%clk 0:00:05.5]} 42... Kg6 {[%clk
0:00:41.6]} 43. Rd6+ {[%clk 0:00:04.1]} 43... Kh5 {[%clk 0:00:41.6]} 44. Kf5
{[%clk 0:00:04.7]} 44... Ra2 {[%clk 0:00:39]} 45. Rc6 {[%clk 0:00:03.4]} 45...
a5 {[%clk 0:00:38.2]} 46. Ke4 {[%clk 0:00:02]} 46... Rxg2 {[%clk 0:00:37.3]} 47.
Kf5 {[%clk 0:00:02.9]} 47... Rg3 {[%clk 0:00:35.1]} 48. Kf6 {[%clk 0:00:02.7]}
48... Rxf3 {[%clk 0:00:34.1]} 49. Kg7 {[%clk 0:00:03]} 49... Rxh3 {[%clk
0:00:34.5]} 50. Rxh6+ {[%clk 0:00:03]} 50... Kg4 {[%clk 0:00:35]} 0-1

[Event "*** Titled Tuesday Blitz"]
[Site "Chess.com"]
[Date "2020.05.05"]
[Round "7"]
[White "orkan85"]
[Black "MFBerna"]
[Result "0-1"]
[WhiteElo "2466"]
[BlackElo "2345"]
[TimeControl "180+1"]
[EndTime "11:19:00 PDT"]
[Termination "MFBerna won by resignation"]

1. e4 {[%clk 0:03:00.9]} 1... e5 {[%clk 0:02:57.4]} 2. Nf3 {[%clk 0:03:00.4]}
2... Nc6 {[%clk 0:02:57.3]} 3. Bc4 {[%clk 0:03:00.5]} 3... Bc5 {[%clk
0:02:53.2]} 4. O-O {[%clk 0:03:00]} 4... Nf6 {[%clk 0:02:51.1]} 5. d3 {[%clk
0:03:00.5]} 5... O-O {[%clk 0:02:48.3]} 6. Re1 {[%clk 0:03:00.9]} 6... d6 {[%clk
0:02:45.9]} 7. c3 {[%clk 0:03:01.4]} 7... a6 {[%clk 0:02:45.1]} 8. a4 {[%clk
0:03:01]} 8... h6 {[%clk 0:02:43.7]} 9. h3 {[%clk 0:03:01.4]} 9... Ne7 {[%clk
0:02:42.3]} 10. Nbd2 {[%clk 0:02:55.3]} 10... Ng6 {[%clk 0:02:40.9]} 11. d4
{[%clk 0:02:53.4]} 11... Ba7 {[%clk 0:02:39.1]} 12. Bb3 {[%clk 0:02:12.5]} 12...
Qe7 {[%clk 0:02:38.5]} 13. a5 {[%clk 0:02:09.9]} 13... c6 {[%clk 0:02:38.2]} 14.
Bc2 {[%clk 0:02:09.1]} 14... Be6 {[%clk 0:02:28.9]} 15. Nf1 {[%clk 0:02:09.6]}
15... Rad8 {[%clk 0:02:16.9]} 16. Ng3 {[%clk 0:02:07.8]} 16... Qc7 {[%clk
0:02:08.8]} 17. Be3 {[%clk 0:02:07.5]} 17... Rfe8 {[%clk 0:02:06.2]} 18. Qc1
{[%clk 0:02:00.2]} 18... exd4 {[%clk 0:01:55.6]} 19. cxd4 {[%clk 0:01:53.8]}
19... d5 {[%clk 0:01:48.2]} 20. e5 {[%clk 0:01:52.7]} 20... Nh7 {[%clk
0:01:35.4]} 21. Bxh6 {[%clk 0:01:46.7]} 21... gxh6 {[%clk 0:01:34.9]} 22. Qxh6
{[%clk 0:01:47.6]} 22... Qe7 {[%clk 0:01:20.5]} 23. Bxg6 {[%clk 0:01:21.9]}
23... fxg6 {[%clk 0:01:21.4]} 24. Qxg6+ {[%clk 0:01:22.5]} 24... Qg7 {[%clk
0:01:17.7]} 25. Qc2 {[%clk 0:01:23.4]} 25... Rf8 {[%clk 0:01:13.2]} 26. Ra3
{[%clk 0:01:20.4]} 26... Ng5 {[%clk 0:00:59.3]} 27. Nxg5 {[%clk 0:01:18.7]}
27... Qxg5 {[%clk 0:01:00.2]} 28. Ne4 {[%clk 0:01:13.2]} 28... dxe4 {[%clk
0:00:47.4]} 29. Rg3 {[%clk 0:01:11.9]} 29... Qxg3 {[%clk 0:00:47.8]} 30. fxg3
{[%clk 0:01:12.8]} 30... Bxd4+ {[%clk 0:00:47.2]} 31. Kh2 {[%clk 0:01:08.9]}
31... Bd5 {[%clk 0:00:33.1]} 32. e6 {[%clk 0:00:58.7]} 32... Rf2 {[%clk
0:00:27]} 33. Qd1 {[%clk 0:00:57]} 33... e3 {[%clk 0:00:20]} 34. Qg4+ {[%clk
0:00:43.9]} 34... Kf8 {[%clk 0:00:19.7]} 35. h4 {[%clk 0:00:37.5]} 35... Rxg2+
{[%clk 0:00:19.6]} 36. Kh3 {[%clk 0:00:37.6]} 36... Ke7 {[%clk 0:00:19.9]} 37.
Qxd4 {[%clk 0:00:33.8]} 37... Bxe6+ {[%clk 0:00:20.1]} 38. Kxg2 {[%clk
0:00:32.8]} 38... Rxd4 {[%clk 0:00:20.3]} 39. Rxe3 {[%clk 0:00:33.7]} 39... Rd2+
{[%clk 0:00:20.6]} 40. Kf3 {[%clk 0:00:33.2]} 40... Rxb2 {[%clk 0:00:20.9]} 41.
g4 {[%clk 0:00:33.4]} 41... Rb3 {[%clk 0:00:21.1]} 42. Rxb3 {[%clk 0:00:31.1]}
42... Bxb3 {[%clk 0:00:22]} 43. Kf4 {[%clk 0:00:30.6]} 43... Bc2 {[%clk
0:00:21.8]} 44. h5 {[%clk 0:00:30.8]} 44... Kf7 {[%clk 0:00:21.6]} 45. g5 {[%clk
0:00:31.3]} 45... Kg7 {[%clk 0:00:21.8]} 46. g6 {[%clk 0:00:25.5]} 46... Kh6
{[%clk 0:00:19.8]} 47. Ke5 {[%clk 0:00:24.1]} 47... Kxh5 {[%clk 0:00:19.7]} 48.
g7 {[%clk 0:00:23.9]} 48... Bb3 {[%clk 0:00:19.7]} 49. Kd4 {[%clk 0:00:24.4]}
49... Kg6 {[%clk 0:00:19.7]} 50. g8=Q+ {[%clk 0:00:23.8]} 50... Bxg8 {[%clk
0:00:19.6]} 51. Kc5 {[%clk 0:00:24.7]} 51... Kf5 {[%clk 0:00:17.1]} 52. Kb6
{[%clk 0:00:25.6]} 52... Bc4 {[%clk 0:00:17.3]} 0-1

[Event "*** Titled Tuesday Blitz"]
[Site "Chess.com"]
[Date "2020.05.05"]
[Round "7"]
[White "szefru"]
[Black "chiwii"]
[Result "0-1"]
[WhiteElo "2085"]
[BlackElo "2251"]
[TimeControl "180+1"]
[EndTime "11:19:00 PDT"]
[Termination "chiwii won by resignation"]

1. e4 {[%clk 0:03:00.9]} 1... c5 {[%clk 0:02:55.9]} 2. Nf3 {[%clk 0:03:00.5]}
2... e6 {[%clk 0:02:55.8]} 3. b3 {[%clk 0:02:58.6]} 3... d5 {[%clk 0:02:54.8]}
4. exd5 {[%clk 0:02:57.9]} 4... exd5 {[%clk 0:02:55.7]} 5. Bb5+ {[%clk
0:02:56.8]} 5... Bd7 {[%clk 0:02:55.1]} 6. Bxd7+ {[%clk 0:02:54.4]} 6... Nxd7
{[%clk 0:02:56]} 7. O-O {[%clk 0:02:54.7]} 7... Ngf6 {[%clk 0:02:56.3]} 8. Re1+
{[%clk 0:02:54.1]} 8... Be7 {[%clk 0:02:56.9]} 9. Qe2 {[%clk 0:02:54.1]} 9...
Nf8 {[%clk 0:02:45.8]} 10. d4 {[%clk 0:02:48.4]} 10... Ne6 {[%clk 0:02:44.1]}
11. dxc5 {[%clk 0:02:40.3]} 11... O-O {[%clk 0:02:43.4]} 12. b4 {[%clk
0:02:31.9]} 12... a5 {[%clk 0:02:41.1]} 13. c3 {[%clk 0:02:30.3]} 13... Ne4
{[%clk 0:02:34.4]} 14. Bb2 {[%clk 0:02:24.2]} 14... Re8 {[%clk 0:02:26]} 15.
Nbd2 {[%clk 0:02:23.4]} 15... Nf4 {[%clk 0:02:25.7]} 16. Qf1 {[%clk 0:02:18.3]}
16... Bh4 {[%clk 0:02:15.1]} 17. g3 {[%clk 0:02:06.3]} 17... Ng6 {[%clk
0:01:33.9]} 18. Nxe4 {[%clk 0:01:54]} 18... dxe4 {[%clk 0:01:31.7]} 19. Nxh4
{[%clk 0:01:51.9]} 19... Nxh4 {[%clk 0:01:31.8]} 20. gxh4 {[%clk 0:01:52.2]}
20... Qxh4 {[%clk 0:01:30.1]} 21. Re3 {[%clk 0:01:49.3]} 21... Re6 {[%clk
0:01:26.3]} 22. Rg3 {[%clk 0:01:28.3]} 22... axb4 {[%clk 0:01:18.7]} 23. cxb4
{[%clk 0:01:27]} 23... Rg6 {[%clk 0:01:19.6]} 24. Qg2 {[%clk 0:01:19.1]} 24...
Raa6 {[%clk 0:01:14.4]} 25. a4 {[%clk 0:00:58]} 25... Rxg3 {[%clk 0:01:12.1]}
26. hxg3 {[%clk 0:00:58.5]} 26... Qg4 {[%clk 0:01:07.9]} 27. b5 {[%clk
0:00:53.4]} 27... Rh6 {[%clk 0:00:59.9]} 28. Bc1 {[%clk 0:00:49.3]} 28... Qd1+
{[%clk 0:00:55.8]} 29. Qf1 {[%clk 0:00:45.3]} 29... Rh1+ {[%clk 0:00:56]} 30.
Kxh1 {[%clk 0:00:44.7]} 30... Qxf1+ {[%clk 0:00:55.8]} 31. Kh2 {[%clk
0:00:45.2]} 31... Qxf2+ {[%clk 0:00:55.6]} 32. Kh3 {[%clk 0:00:45.7]} 32... Qf1+
{[%clk 0:00:49.3]} 33. Kh2 {[%clk 0:00:39.5]} 33... Qe2+ {[%clk 0:00:46.9]} 34.
Kh3 {[%clk 0:00:35.7]} 34... Qh5+ {[%clk 0:00:42.9]} 35. Kg2 {[%clk 0:00:33.8]}
35... Qxc5 {[%clk 0:00:43.5]} 36. Bf4 {[%clk 0:00:30.1]} 36... g5 {[%clk
0:00:41.9]} 37. Rc1 {[%clk 0:00:20.2]} 37... Qf5 {[%clk 0:00:41.8]} 38. Bd2
{[%clk 0:00:16.5]} 38... Qf3+ {[%clk 0:00:41.4]} 39. Kh3 {[%clk 0:00:15.5]}
39... e3 {[%clk 0:00:38.5]} 40. Bxe3 {[%clk 0:00:14.7]} 40... Qxe3 {[%clk
0:00:37.7]} 41. Rc7 {[%clk 0:00:14.6]} 41... h5 {[%clk 0:00:34.4]} 42. Rxb7
{[%clk 0:00:12.4]} 42... h4 {[%clk 0:00:34.4]} 43. Rb8+ {[%clk 0:00:11.5]} 43...
Kg7 {[%clk 0:00:34.1]} 44. Kg4 {[%clk 0:00:11.7]} 44... Qxg3+ {[%clk 0:00:34]}
45. Kh5 {[%clk 0:00:12]} 45... Qxb8 {[%clk 0:00:29.4]} 46. Kxg5 {[%clk 0:00:11]}
46... h3 {[%clk 0:00:29.9]} 0-1

[Event "*** Titled Tuesday Blitz"]
[Site "Chess.com"]
[Date "2020.05.05"]
[Round "7"]
[White "kreonx"]
[Black "AcsinteMatei"]
[Result "1-0"]
[WhiteElo "2230"]
[BlackElo "2378"]
[TimeControl "180+1"]
[EndTime "11:19:01 PDT"]
[Termination "kreonx won by checkmate"]

1. e4 {[%clk 0:03:00.9]} 1... c6 {[%clk 0:02:57.5]} 2. d4 {[%clk 0:02:59.8]}
2... d5 {[%clk 0:02:55.7]} 3. exd5 {[%clk 0:03:00.2]} 3... cxd5 {[%clk
0:02:54.5]} 4. Bd3 {[%clk 0:03:00.8]} 4... g6 {[%clk 0:02:53.2]} 5. Nf3 {[%clk
0:02:58.3]} 5... Bg7 {[%clk 0:02:53.7]} 6. O-O {[%clk 0:02:58.7]} 6... Nc6
{[%clk 0:02:52.7]} 7. c3 {[%clk 0:02:58.5]} 7... Bg4 {[%clk 0:02:52.5]} 8. h3
{[%clk 0:02:57.5]} 8... Bxf3 {[%clk 0:02:49.3]} 9. Qxf3 {[%clk 0:02:56.7]} 9...
e6 {[%clk 0:02:50.2]} 10. Re1 {[%clk 0:02:53.1]} 10... Nge7 {[%clk 0:02:50.3]}
11. Bf4 {[%clk 0:02:52.2]} 11... O-O {[%clk 0:02:49.1]} 12. Na3 {[%clk
0:02:52.1]} 12... f6 {[%clk 0:02:44.8]} 13. Rxe6 {[%clk 0:02:33.4]} 13... Qd7
{[%clk 0:02:39.2]} 14. Rd6 {[%clk 0:02:14.1]} 14... Qc8 {[%clk 0:02:33.8]} 15.
Re1 {[%clk 0:02:13]} 15... Re8 {[%clk 0:02:28.1]} 16. Rde6 {[%clk 0:02:07.2]}
16... Ne5 {[%clk 0:02:21.9]} 17. R6xe5 {[%clk 0:01:52.8]} 17... fxe5 {[%clk
0:02:21.4]} 18. Bxe5 {[%clk 0:01:52.3]} 18... Rf8 {[%clk 0:02:08]} 19. Qe2
{[%clk 0:01:43.6]} 19... Nf5 {[%clk 0:02:01.8]} 20. Bc2 {[%clk 0:01:34.3]} 20...
Re8 {[%clk 0:01:53.2]} 21. Bb3 {[%clk 0:01:33.2]} 21... Bxe5 {[%clk 0:01:41.4]}
22. Bxd5+ {[%clk 0:01:27.4]} 22... Kg7 {[%clk 0:01:41.4]} 23. dxe5 {[%clk
0:01:27.1]} 23... Qc5 {[%clk 0:01:36.4]} 24. c4 {[%clk 0:01:24]} 24... Re7
{[%clk 0:01:34.9]} 25. Kh2 {[%clk 0:01:19.8]} 25... Rf8 {[%clk 0:01:32.3]} 26.
e6 {[%clk 0:01:09.7]} 26... Kg8 {[%clk 0:01:19.2]} 27. Nc2 {[%clk 0:00:54.7]}
27... Ng7 {[%clk 0:01:05.7]} 28. Ne3 {[%clk 0:00:51.4]} 28... Kh8 {[%clk
0:00:52.8]} 29. Ng4 {[%clk 0:00:37.3]} 29... h5 {[%clk 0:00:50.7]} 30. Ne5
{[%clk 0:00:37.3]} 30... Kh7 {[%clk 0:00:44.8]} 31. Qe4 {[%clk 0:00:29.4]} 31...
Rf5 {[%clk 0:00:44.8]} 32. f3 {[%clk 0:00:23.4]} 32... Nxe6 {[%clk 0:00:35.6]}
33. Nxg6 {[%clk 0:00:14.6]} 33... Kxg6 {[%clk 0:00:29.3]} 34. Bxe6 {[%clk
0:00:14.8]} 34... Rxe6 {[%clk 0:00:23.7]} 35. Qxe6+ {[%clk 0:00:14.5]} 35... Rf6
{[%clk 0:00:23]} 36. Qg8+ {[%clk 0:00:14]} 36... Kf5 {[%clk 0:00:22.1]} 37. g4+
{[%clk 0:00:10.1]} 37... Kf4 {[%clk 0:00:19.8]} 38. Rf1 {[%clk 0:00:06.4]} 38...
Ke3 {[%clk 0:00:18]} 39. Qe8+ {[%clk 0:00:05.8]} 39... Kd2 {[%clk 0:00:17.2]}
40. Qe1+ {[%clk 0:00:04.8]} 40... Kc2 {[%clk 0:00:15.8]} 41. Qe2# {[%clk
0:00:04.6]} 1-0